lending/lending_fUSD_20240830
["ID","MTS","AMOUNT","RATE_DAILY","PERIOD"]
[336698310,1725039031661,-722.37922239,0.00010973,2]
[336698311,1725039031816,-8226.33870118,0.00010973,2]
[336698312,1725039031827,-490.46366303,0.00010973,2]
[336698313,1725039031839,-697.89036063,0.00010973,2]
[336698314,1725039031853,-597.34227907,0.00010973,2]
[336698336,1725039037912,-3284.73388658,0.00010973,2]
[336698337,1725039037924,-3767.78877899,0.00010973,2]
[336698338,1725039038027,-1100.0,0.00010973,2]
[336698343,1725039039703,-46203.78255896,0.00010973,2]
[336698344,1725039039821,-2937.297,0.00010972,2]
[336698345,1725039039882,-331.99077223,0.00010972,2]
[336698346,1725039039893,-880.378,0.00010972,2]
[336698424,1725039042762,-112122.70924081,0.00010972,2]
[336698425,1725039042772,-75598.63094405,0.00010973,2]
[336698459,1725039079594,3000.0,0.0001086,2]
[336698460,1725039095326,213.7279,0.00010872,2]
[336698461,1725039139185,170.24,0.00010216,2]
[336698462,1725039189678,216.89,0.00010198,2]
[336698463,1725039194780,1492.67178148,0.00010899,2]
[336698464,1725039194800,10000.0,0.00010899,2]
[336698465,1725039194821,6411.3914341,0.00010899,2]
[336698466,1725039209441,1525.6402,0.00010873,2]
[336698467,1725039219183,200.0,0.00010959,2]
[336698468,1725039219995,384.74,0.00010202,2]
[336698469,1725039316331,237.32,0.00010182,2]
[336698470,1725039369355,1240.9083659,0.00010955,2]
[336698471,1725039369377,2804.01130864,0.00010955,2]
[336698472,1725039378937,250.0,0.00010959,2]
[336698474,1725039383016,250.0,0.00010175,2]
[336698475,1725039398003,781.28,8.234e-05,2]
[336698476,1725039398203,781.28,0.00010498,2]
[336698477,1725039422111,169.31117399,0.00010437,2]
[336698478,1725039423253,4964.11751737,0.00010873,2]
[336698479,1725039423275,7097.67738263,0.00010873,2]
[336698480,1725039427715,2593.9917,0.0001086,2]
[336698481,1725039439580,308.33091737,0.00010873,2]
[336698482,1725039439600,10000.0,0.00010873,2]
[336698483,1725039439621,8515.04508263,0.00010873,2]
[336698484,1725039440798,250.0,0.00010147,2]
[336698485,1725039441924,1234.95491737,0.00010873,2]
[336698486,1725039441945,10000.0,0.00010873,2]
[336698487,1725039441966,10000.0,0.00010873,2]
[336698488,1725039441987,10000.0,0.00010873,2]
[336698489,1725039442008,943.01818263,0.00010873,2]
[336698490,1725039452831,500.0,8.22e-05,2]
[336698491,1725039454438,500.0,9.59e-05,2]
[336698492,1725039454876,356.23185768,0.00010873,2]
[336698493,1725039456054,500.0,0.0001096,2]
[336698494,1725039458453,500.0,9.973e-05,2]
[336698495,1725039459201,500.0,9.973e-05,2]
[336698496,1725039459515,356.23185767,0.000109,2]
[336698497,1725039459972,470.62,9.973e-05,2]
[336698498,1725039468075,5373.89810202,0.00010873,2]
[336698499,1725039468102,1757.88129798,0.00010873,2]
[336698500,1725039477436,500.0,9.973e-05,2]
[336698501,1725039478184,500.0,9.973e-05,2]
[336698502,1725039478546,5493.958137,0.00010915,2]
[336698503,1725039478930,209.01,9.973e-05,2]
[336698504,1725039490028,737.6,0.00010143,2]
[336698505,1725039496191,801.55056502,0.00010873,2]
[336698506,1725039496212,2454.50953498,0.00010873,2]
[336698508,1725039498184,159.25,0.00010959,2]
[336698509,1725039502494,218.93,0.0001022,2]
[336698510,1725039505010,555.55011252,0.00010873,2]
[336698511,1725039507391,6611.7603525,9.873e-05,2]
[336698512,1725039507412,2730.21517918,9.873e-05,2]
[336698513,1725039508973,7269.78482082,0.0001087,2]
[336698514,1725039509006,4323.69567918,0.0001087,2]
[336698515,1725039513708,1608.09839932,0.0001087,2]
[336698516,1725039519143,155.71262457,0.00010899,2]
[336698517,1725039521538,349.12575998,0.00010873,2]
[336698518,1725039524037,181.722,0.0001087,2]
[336698519,1725039525999,3678.08,0.00010117,2]
[336698520,1725039568312,151.98228612,0.00010873,2]
[336698521,1725039603172,241.86,0.00010873,2]
[336698522,1725039610881,160.46,0.00010079,2]
[336698523,1725039650390,9170.5767,0.00010873,2]
[336698524,1725039661307,1000.0,0.00010079,2]
[336698525,1725039696391,3297.05,0.00010084,2]
[336698526,1725039726347,226.48,0.00010084,2]
[336698527,1725039762281,784.51,0.00010079,2]
[336698528,1725039765336,675.1766,0.00010873,2]
[336698529,1725039772896,352.22092747,0.00010873,2]
[336698530,1725039774755,3000.0,0.0001086,2]
[336698531,1725039819074,500.0,0.00010885,2]
[336698532,1725039825007,313.73,0.00010095,2]
[336698533,1725039825777,313.73,0.00010098,2]
[336698534,1725039825811,313.73,0.000101,2]
[336698535,1725039825861,313.73,0.00010103,2]
[336698536,1725039825904,313.73,0.00010106,2]
[336698537,1725039826088,313.73,0.00010108,2]
[336698538,1725039826291,313.73,0.00010111,2]
[336698539,1725039826540,313.73,0.00010114,2]
[336698540,1725039826777,313.73,0.00010116,2]
[336698541,1725039826990,313.73,0.00010119,2]
[336698542,1725039827241,313.73,0.00010122,2]
[336698543,1725039827499,313.73,0.00010124,2]
[336698544,1725039827730,313.73,0.00010127,2]
[336698545,1725039827995,313.73,0.0001013,2]
[336698546,1725039828223,313.73,0.00010132,2]
[336698547,1725039828477,313.73,0.00010135,2]
[336698548,1725039830026,313.73,0.00010137,2]
[336698549,1725039830230,313.73,0.0001014,2]
[336698550,1725039830434,313.73,0.00010143,2]
[336698551,1725039830660,313.73,0.00010145,2]
[336698552,1725039835435,200.0,0.00010959,2]
[336698553,1725039850151,108668.0,0.00010873,2]
[336698554,1725039859170,250.0,0.00010095,2]
[336698555,1725039896171,804.18,8.219e-05,2]
[336698556,1725039896610,804.18,0.00010477,2]
[336698557,1725039909610,150.0,0.00010932,2]
[336698558,1725039961451,250.0,0.00010036,2]
[336698560,1725039997392,1510.26,0.00010116,2]
[336698561,1725040026572,150.0,9.863e-05,2]
[336698562,1725040063977,6546.92,0.00010099,2]
[336698563,1725040096854,-193.22777298,0.00010963,2]
[336698564,1725040096882,-193.22777298,0.00010963,2]
[336698565,1725040096911,-171.0,0.00010967,2]
[336698566,1725040096939,-300.0,0.00010967,2]
[336698567,1725040096966,-150.0,0.00010967,2]
[336698568,1725040096996,-3433.97192117,0.00010968,2]
[336698569,1725040097028,-4039.36197173,0.00010968,2]
[336698570,1725040121959,-4611.0432559,0.00010968,2]
[336698571,1725040122173,-3736.83069656,0.00010968,2]
[336698576,1725040122931,2521.25827,0.0001086,2]
[336698590,1725040170706,1000.0,0.000109,2]
[336698592,1725040192659,155.27,0.00010959,2]
[336698593,1725040220044,226.52,0.00010097,2]
[336698594,1725040222634,1000.0,0.00010097,2]
[336698596,1725040231753,-1473.5679645,0.00010968,2]
[336698597,1725040231763,-1033.21994005,0.00010968,2]
[336698598,1725040231814,-858.16390953,0.00010968,2]
[336698599,1725040231827,-5710.98748693,0.00010968,2]
[336698600,1725040231838,-2354.73262451,0.00010968,2]
[336698601,1725040231852,-453.51,0.00010968,2]
[336698602,1725040231865,-1678.36195538,0.00010968,2]
[336698603,1725040231875,-1747.2220418,0.00010968,2]
[336698604,1725040231885,-3797.75,0.00010971,2]
[336698605,1725040231895,-1452.7827718,0.00010972,2]
[336698606,1725040231905,-12145.33158565,0.00010973,2]
[336698607,1725040231918,-2425.77720871,0.00010973,2]
[336698608,1725040231930,-1894.86731563,0.00010973,2]
[336698609,1725040231943,-1658.82697023,0.00010973,2]
[336698610,1725040231955,-3989.45713517,0.00010973,2]
[336698611,1725040231965,-13164.37292999,0.00010973,2]
[336698626,1725040237859,-58615.69132503,0.00010972,2]
[336698627,1725040237869,-12199.25359745,0.00010973,2]
[336698628,1725040237880,-3997.69464045,0.00010973,2]
[336698629,1725040237919,-5054.929966,0.00010973,2]
[336698630,1725040237930,-1044.62063914,0.00010973,2]
[336698631,1725040237978,-828.04570359,0.00010973,2]
[336698632,1725040238095,-834.09869582,0.00010973,2]
[336698633,1725040238153,-2515.47398675,0.00010973,2]
[336698790,1725040239854,-1873.3,0.00010973,2]
[336698802,1725040239970,-743.53229244,0.00010973,2]
[336698810,1725040240033,-619.43909521,0.00010973,2]
[336698812,1725040240044,-424.16972807,0.00010973,2]
[336698814,1725040240055,-1122.57976416,0.00010973,2]
[336698819,1725040240094,-1568.29552831,0.00010973,2]
[336698821,1725040240105,-3705.05,0.00010973,2]
[336698823,1725040240116,-322.56152394,0.00010973,2]
[336698828,1725040240156,-3868.2,0.00010973,2]
[336698966,1725040241667,-3504.1443,0.00010973,2]
[336698996,1725040241948,-1367.76559331,0.00010973,2]
[336699000,1725040241976,-6356.23636126,0.00010973,2]
[336699100,1725040242900,-653.31270692,0.00010973,2]
[336699107,1725040242960,-377.11693109,0.00010973,2]
[336699110,1725040242972,-1079.31918,0.00010973,2]
[336699122,1725040243075,-457.46219434,0.00010973,2]
[336699124,1725040243089,-265.6000002,0.00010973,2]
[336699414,1725040245992,-668.30843146,0.00010973,2]
[336699424,1725040246167,-973.24910627,0.00010973,2]
[336699767,1725040282932,2262.093,0.00010873,2]
[336699768,1725040311500,272.49,0.00010098,2]
[336699769,1725040369218,-2110.473861,0.00010968,2]
[336699770,1725040369241,-1754.8199326,0.00010972,2]
[336699771,1725040369264,-150.0,0.00010972,2]
[336699772,1725040369287,-300.0,0.00010972,2]
[336699773,1725040369314,-19994.7062064,0.00010972,2]
[336699774,1725040373982,-9313.13945612,0.00010972,2]
[336699775,1725040374006,-15686.86054388,0.00010973,2]
[336699776,1725040374052,-25000.0,0.00010973,2]
[336699777,1725040374972,-25000.0,0.00010973,2]
[336699778,1725040375357,-25000.0,0.00010973,2]
[336699779,1725040375880,-25000.0,0.00010973,2]
[336699780,1725040376564,-25000.0,0.00010973,2]
[336699781,1725040376947,-25000.0,0.00010973,2]
[336699782,1725040378098,-25000.0,0.00010973,2]
[336699783,1725040392814,-15817.5128358,0.00010968,2]
[336699784,1725040392841,-300.0,0.00010972,2]
[336699785,1725040392864,-8882.4871642,0.00010972,2]
[336699786,1725040393349,-4189.4793476,0.00010972,2]
[336699787,1725040393372,-20810.5206524,0.00010973,2]
[336699788,1725040393928,-25000.0,0.00010973,2]
[336699789,1725040395312,492.13,0.00010141,2]
[336699790,1725040399217,11503.0,0.000101,5]
[336699791,1725040403434,770.76,8.275e-05,2]
[336699792,1725040403657,770.76,0.00010539,2]
[336699793,1725040417440,500.0,0.00010885,2]
[336699794,1725040421407,151.63,0.00010132,2]
[336699795,1725040434421,200.0,0.00010959,2]
[336699796,1725040447332,250.0,0.0001016,2]
[336699797,1725040451670,786.2622,0.00010873,2]
[336699798,1725040466880,250.0,0.00010109,2]
[336699799,1725040583868,170.24,0.00010014,2]
[336699800,1725040657870,3000.0,0.0001086,2]
[336699801,1725040668652,11003.41,9.994e-05,2]
[336699802,1725040724053,200.0,9.999e-05,2]
[336699803,1725040824667,166.74,0.00010958,2]
[336699804,1725040891038,218.81,9.989e-05,2]
[336699805,1725040898330,246.06,9.989e-05,2]
[336699806,1725040920897,-550.0,0.00011,10]
[336699807,1725040928843,250.0,9.989e-05,2]
[336699808,1725040962005,254.41,0.00010065,2]
[336699809,1725040982186,250.0,9.985e-05,2]
[336699810,1725040984946,693.68,8.219e-05,2]
[336699811,1725040985201,693.68,0.00010475,2]
[336699812,1725040988274,-300.0,0.00011,10]
[336699813,1725041014777,500.0,0.00010885,2]
[336699814,1725041031399,200.0,0.00010959,2]
[336699815,1725041035967,1601.04856,0.0001086,2]
[336699816,1725041061805,4197.82,0.00010066,2]
[336699817,1725041238979,840.0,0.00010007,2]
[336699818,1725041341741,2500.0,0.0001086,2]
[336699820,1725041367461,-150.0,0.00010961,2]
[336699821,1725041367490,-440.37274966,0.00010961,2]
[336699822,1725041367518,-161.18,0.00010962,2]
[336699823,1725041367548,-161.18,0.00010962,2]
[336699824,1725041367578,-161.18,0.00010962,2]
[336699825,1725041367605,-161.18,0.00010962,2]
[336699826,1725041367633,-161.18,0.00010962,2]
[336699827,1725041367662,-3185.74161257,0.00010962,2]
[336699828,1725041367699,-843.77096228,0.00010962,2]
[336699829,1725041407527,246.06,0.00010042,2]
[336699836,1725041431974,-258.76851609,0.00010962,2]
[336699837,1725041431985,-1578.55756815,0.00010962,2]
[336699838,1725041431997,-822.5,0.00010962,2]
[336699839,1725041432008,-1817.0535657,0.00010962,2]
[336699840,1725041432020,-319.86038199,0.00010962,2]
[336699841,1725041432213,-0.83792455,0.00010962,2]
[336699842,1725041432225,-397.08384421,0.00010962,2]
[336699843,1725041432236,-599.92409401,0.00010962,2]
[336699844,1725041432245,-3074.35708491,0.00010962,2]
[336699845,1725041432257,-5463.35600862,0.00010962,2]
[336699849,1725041438487,-1216.02192436,0.00010962,2]
[336699850,1725041438500,-1451.33807564,0.00010962,2]
[336699852,1725041440118,-6.501084,0.00010962,2]
[336699853,1725041440130,-753.83647302,0.00010962,2]
[336699854,1725041440142,-600.76963766,0.00010962,2]
[336699855,1725041440155,-881.95,0.00010962,2]
[336699856,1725041440167,-678.04999999,0.00010962,2]
[336699857,1725041440195,-526.41,0.00010962,2]
[336699858,1725041440206,-733.98664601,0.00010962,2]
[336699859,1725041440219,-306.09729367,0.00010962,2]
[336699860,1725041440231,-8036.25468381,0.00010962,2]
[336699861,1725041440240,-150.76,0.00010963,2]
[336699862,1725041440249,-150.76,0.00010963,2]
[336699863,1725041440259,-150.76,0.00010963,2]
[336699864,1725041440271,-150.76,0.00010963,2]
[336699865,1725041440280,-150.76,0.00010963,2]
[336699866,1725041440289,-150.76,0.00010963,2]
[336699867,1725041440299,-150.76,0.00010963,2]
[336699868,1725041440308,-67.50008901,0.00010963,2]
[336700037,1725041444228,-83.25991099,0.00010963,2]
[336700039,1725041444237,-150.76,0.00010963,2]
[336700041,1725041444247,-150.76,0.00010963,2]
[336700043,1725041444256,-150.76,0.00010963,2]
[336700045,1725041444265,-150.76,0.00010963,2]
[336700047,1725041444274,-150.76,0.00010963,2]
[336700049,1725041444284,-150.76,0.00010963,2]
[336700051,1725041444293,-150.76,0.00010963,2]
[336700053,1725041444302,-150.76,0.00010963,2]
[336700054,1725041444312,-150.76,0.00010963,2]
[336700056,1725041444321,-150.76,0.00010963,2]
[336700058,1725041444330,-150.76,0.00010963,2]
[336700060,1725041444339,-150.76,0.00010963,2]
[336700063,1725041444350,-150.76,0.00010963,2]
[336700064,1725041444359,-150.76,0.00010963,2]
[336700067,1725041444368,-150.76,0.00010963,2]
[336700069,1725041444379,-150.76,0.00010963,2]
[336700071,1725041444388,-150.76,0.00010963,2]
[336700073,1725041444397,-150.76,0.00010963,2]
[336700075,1725041444407,-150.76,0.00010963,2]
[336700077,1725041444415,-150.76,0.00010963,2]
[336700079,1725041444426,-150.76,0.00010963,2]
[336700081,1725041444437,-150.76,0.00010963,2]
[336700083,1725041444447,-150.76,0.00010963,2]
[336700085,1725041444456,-150.76,0.00010963,2]
[336700087,1725041444467,-150.76,0.00010963,2]
[336700089,1725041444478,-150.76,0.00010963,2]
[336700091,1725041444490,-150.76,0.00010963,2]
[336700093,1725041444500,-150.76,0.00010963,2]
[336700095,1725041444510,-150.76,0.00010963,2]
[336700097,1725041444520,-150.76,0.00010963,2]
[336700099,1725041444529,-150.76,0.00010963,2]
[336700102,1725041444539,-150.76,0.00010963,2]
[336700104,1725041444549,-150.76,0.00010963,2]
[336700106,1725041444558,-150.76,0.00010963,2]
[336700107,1725041444567,-150.76,0.00010963,2]
[336700109,1725041444576,-5201.81982957,0.00010968,2]
[336700112,1725041444586,-20821.44835463,0.0001097,2]
[336700114,1725041444596,-31817.62045253,0.00010972,2]
[336700116,1725041444608,-466053.25145223,0.00010973,2]
[336700303,1725041446301,250.0,0.00010068,2]
[336700739,1725041453018,500.0,0.000102,3]
[336700740,1725041455217,1000.0,0.000103,3]
[336700741,1725041457360,1500.0,0.000104,3]
[336700742,1725041459541,2000.0,0.000105,3]
[336700743,1725041461683,2500.0,0.000106,3]
[336700744,1725041463815,500.0,0.000107,3]
[336700745,1725041465967,500.0,0.000108,3]
[336700746,1725041468094,500.0,0.000109,3]
[336700747,1725041499607,624.31,8.219e-05,2]
[336700748,1725041499999,624.31,0.00010482,2]
[336700749,1725041506226,31406.1918,0.00010873,2]
[336700750,1725041523525,250.0,0.00010129,2]
[336700751,1725041567314,224.95,0.00010095,2]
[336700752,1725041594600,303.1336645,0.00010873,2]
[336700753,1725041597788,901.04447402,0.00010869,20]
[336700754,1725041620164,500.0,0.00010885,2]
[336700755,1725041641641,200.0,0.00010959,2]
[336700756,1725041664880,1980.7459,0.00010873,2]
[336700757,1725041767339,328.0,0.00010068,2]
[336700758,1725041854899,170.24,0.00010067,2]
[336700759,1725041949498,250.0,0.00010065,2]
[336700761,1725041984220,223.08,0.00010959,2]
[336700762,1725042027461,948.73,0.00010052,2]
[336700763,1725042045796,806.50006068,0.00010745,2]
[336700764,1725042064055,586.74,8.219e-05,2]
[336700765,1725042064485,586.74,0.00010479,2]
[336700766,1725042077345,250.0,0.00010052,2]
[336700767,1725042196099,224.96,0.00010052,2]
[336700768,1725042223714,500.0,0.00010885,2]
[336700769,1725042237697,200.0,0.00010959,2]
[336700770,1725042257272,1601.04856,0.0001092,2]
[336700771,1725042257957,3899.60662355,0.00010873,2]
[336700772,1725042303859,737.6,0.00010043,2]
[336700774,1725042336218,-300.0,0.00010962,2]
[336700775,1725042336243,-3085.09894469,0.00010963,2]
[336700776,1725042336269,-151.19,0.00010963,2]
[336700777,1725042336293,-296.8596818,0.00010963,2]
[336700778,1725042336315,-296.8596818,0.00010963,2]
[336700779,1725042336338,-296.8596818,0.00010963,2]
[336700780,1725042336362,-156.10057481,0.00010972,2]
[336700781,1725042336384,-211.52985921,0.00010972,2]
[336700782,1725042336406,-2189.94624487,0.00010972,2]
[336700783,1725042336434,-150.0,0.00010972,2]
[336700784,1725042336464,-16082.54743716,0.00010972,2]
[336700785,1725042336490,-984.84789386,0.00010973,2]
[336700786,1725042336524,461.79468298,9.5e-05,2]
[336700787,1725042340154,-25000.0,0.00010973,2]
[336700788,1725042341477,-25000.0,0.00010973,2]
[336700789,1725042341530,-25000.0,0.00010973,2]
[336700790,1725042343217,-1094.97312243,0.00010972,2]
[336700791,1725042343244,-23905.02687757,0.00010973,2]
[336700792,1725042343980,-25000.0,0.00010973,2]
[336700793,1725042344596,-25000.0,0.00010973,2]
[336700794,1725042346287,-25000.0,0.00010973,2]
[336700795,1725042346885,-25000.0,0.00010973,2]
[336700798,1725042420737,84302.36502859,0.0001088,2]
[336700799,1725042443832,245.30505969,0.000101,2]
[336700800,1725042458316,250.0,0.00010104,2]
[336700801,1725042496861,159.25,0.00010959,2]
[336700802,1725042562922,1601.04857,0.0001091,2]
[336700803,1725042563096,2500.0,0.0001092,2]
[336700813,1725042632206,-197.0,0.00010971,2]
[336700814,1725042632220,-300.0,0.00010971,2]
[336700816,1725042632230,-140.70804107,0.00010972,2]
[336700818,1725042632243,-406.77852015,0.00010972,2]
[336700820,1725042632253,-87.55811626,0.00010972,3]
[336700821,1725042632268,-1001.07908928,0.00010972,3]
[336700822,1725042632280,-204.54252397,0.00010972,3]
[336700823,1725042632290,-124.60007931,0.00010972,2]
[336700824,1725042632307,-25.39992069,0.00010972,2]
[336700825,1725042632318,-274.60007931,0.00010973,2]
[336700826,1725042632517,-0.0054099,0.00010973,2]
[336700827,1725042632534,-1731.28504997,0.00010973,2]
[336700828,1725042632546,-446.35602195,0.00010973,2]
[336700829,1725042632567,-1242.53304438,0.00010973,2]
[336700850,1725042638310,-547.48656121,0.00010972,2]
[336700851,1725042638323,-8041.27371858,0.00010972,2]
[336700852,1725042638336,-21710.339673,0.00010973,2]
[336700853,1725042638351,-713.52089121,0.00010973,2]
[336700854,1725042638366,-657.19038761,0.00010973,2]
[336700855,1725042638524,-282.04696975,0.00010973,2]
[336700856,1725042638538,-566.76354058,0.00010973,2]
[336700857,1725042638557,-600.0,0.00010973,2]
[336700858,1725042638571,-464.49215407,0.00010973,2]
[336700859,1725042638586,-805.98015679,0.00010973,2]
[336700860,1725042638600,-544.01346895,0.00010973,2]
[336700861,1725042638615,-285.49172499,0.00010973,2]
[336700942,1725042640476,-1000.0,0.00010973,2]
[336700943,1725042640490,-2775.89751232,0.00010973,2]
[336700944,1725042640504,-1922.61,0.00010973,2]
[336700945,1725042640572,-5617.56971841,0.00010973,2]
[336700946,1725042640666,-543.43566378,0.00010973,2]
[336700947,1725042640682,-414.4410234,0.00010973,2]
[336701021,1725042644426,-254.83523717,0.00010973,2]
[336701024,1725042644452,-5921.82,0.00010973,2]
[336701070,1725042646397,-5923.552,0.00010973,2]
[336701071,1725042646496,-1889.97639265,0.00010973,2]
[336701079,1725042648204,150.0,0.00010748,2]
[336701080,1725042704808,2508.9199,0.00010872,2]
[336701081,1725042706859,682.0570981,0.00010787,2]
[336701082,1725042713738,297.3,0.0001007,2]
[336701083,1725042718403,548.76,8.219e-05,2]
[336701084,1725042718662,548.76,0.0001048,2]
[336701085,1725042724686,1000.0,0.000109,2]
[336701086,1725042777565,150.0,0.00010055,2]
[336701087,1725042794526,257.07,0.00010959,2]
[336701088,1725042808550,409.92,0.00010055,2]
[336701089,1725042823137,500.0,0.00010885,2]
[336701090,1725042837575,200.0,0.00010959,2]
[336701091,1725042867358,250.0,0.00010086,2]
[336701092,1725042868079,1601.04857,0.0001095,2]
[336701093,1725042868116,1601.04856,0.0001087,2]
[336701094,1725042868204,1601.04856,0.0001091,2]
[336701095,1725042868493,2500.0,0.0001091,2]
[336701096,1725042873688,220.04,0.00010083,2]
[336701097,1725042993831,155.27,0.00010959,2]
[336701099,1725043004228,250.0,0.00010056,2]
[336701100,1725043105088,2000.0,0.00010062,2]
[336701101,1725043156933,7429.55436019,0.0001085,10]
[336701102,1725043202741,2437.46,0.00010047,2]
[336701103,1725043254857,493.88,8.219e-05,2]
[336701104,1725043255426,493.88,0.00010479,2]
[336701105,1725043268325,358.52143,0.0001086,2]
[336701106,1725043339750,672.06,0.00010075,2]
[336701107,1725043395288,223.96,0.00010069,2]
[336701108,1725043397053,250.0,0.00010069,2]
[336701109,1725043437516,500.0,0.00010885,2]
[336701111,1725043455038,200.0,0.00010959,2]
[336701112,1725043483382,250.0,0.00010099,2]
[336701113,1725043510716,150.0,0.00010932,2]
[336701115,1725043616421,1250.0,0.0001086,2]
[336701116,1725043732944,444.49,8.219e-05,2]
[336701117,1725043733002,444.49,0.00010482,2]
[336701118,1725043808441,170.24,0.00010117,2]
[336701119,1725043810199,-3482.9109212,0.00010963,2]
[336701120,1725043810229,-979.29042502,0.00010963,2]
[336701121,1725043810265,-3378.97714596,0.00010963,2]
[336701125,1725043832382,-150.81,0.00010963,2]
[336701127,1725043832393,-150.81,0.00010963,2]
[336701128,1725043832402,-150.81,0.00010963,2]
[336701129,1725043832413,-150.81,0.00010963,2]
[336701130,1725043832423,-150.81,0.00010963,2]
[336701131,1725043832432,-150.81,0.00010963,2]
[336701132,1725043832442,-137.73242902,0.00010963,2]
[336701133,1725043832451,-4165.30657188,0.0001097,2]
[336701134,1725043832460,-214.53666799,0.00010972,2]
[336701135,1725043832470,-127.56433111,0.00010972,2]
[336701146,1725043837714,462.35,0.00010254,2]
[336701150,1725043838500,-22.43566889,0.00010972,2]
[336701151,1725043838510,-739.74731599,0.00010972,2]
[336701307,1725043840582,-1706.24221197,0.00010972,2]
[336701309,1725043840594,-321.60933665,0.00010972,2]
[336701592,1725043843475,-1253.03799468,0.00010972,2]
[336701594,1725043843484,-4668.18080532,0.00010973,2]
[336701886,1725043846428,-873.97731455,0.00010973,2]
[336701890,1725043846441,-594.0594,0.00010973,2]
[336701894,1725043846452,-2998.56605065,0.00010973,2]
[336701897,1725043846463,-636.02325911,0.00010973,2]
[336701900,1725043846475,-280.9089991,0.00010973,2]
[336702625,1725043885296,250.0,0.00010234,2]
[336702626,1725043921315,224.0,0.00010333,2]
[336702627,1725043964619,298.76786,0.0001086,2]
[336702628,1725044011263,2258.999999,0.000109,2]
[336702629,1725044018297,500.0,0.00010885,2]
[336702630,1725044032080,200.0,0.00010959,2]
[336702631,1725044032570,250.0,0.00010231,2]
[336702633,1725044110104,2000.0,0.0001,2]
[336702634,1725044257750,400.04,8.237e-05,2]
[336702635,1725044258004,400.04,0.00010501,2]
[336702636,1725044303240,153.65,0.00010191,2]
[336702637,1725044303490,153.65,0.00010242,2]
[336702638,1725044312680,1041.66666,0.0001086,2]
[336702639,1725044329947,630.12,0.00010175,2]
[336702640,1725044447659,250.0,0.00010144,2]
[336702641,1725044452152,220.83,0.00010144,2]
[336702642,1725044463205,1078.0,0.00010893,2]
[336702643,1725044468293,552.0,0.00010893,2]
[336702644,1725044475861,1898.0,0.00010893,2]
[336702647,1725044617724,500.0,0.00010885,2]
[336702648,1725044619143,250.0,0.00010132,2]
[336702649,1725044626251,248.97322,0.0001086,2]
[336702650,1725044760908,360.03,8.219e-05,2]
[336702651,1725044761144,360.03,0.00010481,2]
[336702652,1725044894613,495.9,0.00010106,2]
[336702653,1725044926438,250.0,0.00010124,2]
[336702654,1725044958503,-1198.0,0.00010961,2]
[336702655,1725044958533,-132.40527153,0.00010962,2]
[336702656,1725044983525,868.05555,0.0001086,2]
[336702657,1725044988343,223.33,0.0001013,2]
[336702668,1725045031540,-434.45692096,0.00010962,2]
[336702669,1725045031550,-150.82,0.00010963,2]
[336702670,1725045031559,-150.0,0.00010967,2]
[336702671,1725045031569,-527.01903835,0.00010968,2]
[336702672,1725045031717,-157.53204564,0.00010968,2]
[336702673,1725045031727,-251.281,0.00010968,2]
[336702677,1725045032088,-416.58763912,0.00010968,2]